[Event "Early-Titled-Tuesday-Blitz-March-05-2024"]
[Site "Chess.com"]
[Date "2024.03.05"]
[Round "11"]
[White "Arystanner"]
[Black "Yan_Dyomin2010"]
[Result "1-0"]
[WhiteElo "2887"]
[BlackElo "2709"]
[TimeControl "180+1"]
[EndTime "10:09:42 PST"]
[Termination "Arystanner won by checkmate"]

1. e4 {[%clk 0:02:55.7]} 1... c5 {[%clk 0:02:58.8]} 2. Nf3 {[%clk 0:02:56]} 2...
Nc6 {[%clk 0:02:58.1]} 3. Bb5 {[%clk 0:02:55.6]} 3... e6 {[%clk 0:02:54.3]} 4.
c3 {[%clk 0:02:56.1]} 4... d5 {[%clk 0:02:47.7]} 5. exd5 {[%clk 0:02:55.2]} 5...
exd5 {[%clk 0:02:48.6]} 6. O-O {[%clk 0:02:54.8]} 6... Bd6 {[%clk 0:02:48.4]} 7.
d4 {[%clk 0:02:55.5]} 7... Ne7 {[%clk 0:02:44.6]} 8. dxc5 {[%clk 0:02:55.6]}
8... Bxc5 {[%clk 0:02:45.5]} 9. Nbd2 {[%clk 0:02:55.4]} 9... O-O {[%clk
0:02:44.5]} 10. Nb3 {[%clk 0:02:56.1]} 10... Bb6 {[%clk 0:02:41.7]} 11. Bd3
{[%clk 0:02:56.4]} 11... Bf5 {[%clk 0:02:37.5]} 12. Re1 {[%clk 0:02:54.3]} 12...
Qd7 {[%clk 0:02:36]} 13. Bg5 {[%clk 0:02:53.1]} 13... Rae8 {[%clk 0:02:35.8]}
14. h3 {[%clk 0:02:51.3]} 14... h6 {[%clk 0:02:34.1]} 15. Bxe7 {[%clk
0:02:51.5]} 15... Rxe7 {[%clk 0:02:32.9]} 16. Bxf5 {[%clk 0:02:50.8]} 16... Qxf5
{[%clk 0:02:32.6]} 17. Rxe7 {[%clk 0:02:50.4]} 17... Nxe7 {[%clk 0:02:33.5]} 18.
Nbd4 {[%clk 0:02:49.5]} 18... Qd7 {[%clk 0:02:32.5]} 19. Qd3 {[%clk 0:02:49.7]}
19... Re8 {[%clk 0:02:28.1]} 20. Re1 {[%clk 0:02:50]} 20... Ng6 {[%clk 0:02:25]}
21. Rxe8+ {[%clk 0:02:49.7]} 21... Qxe8 {[%clk 0:02:25.9]} 22. g3 {[%clk
0:02:41.9]} 22... Ne5 {[%clk 0:02:23.1]} 23. Nxe5 {[%clk 0:02:40.8]} 23... Qxe5
{[%clk 0:02:22.7]} 24. Ne2 {[%clk 0:02:19.6]} 24... g6 {[%clk 0:02:16.2]} 25.
Kg2 {[%clk 0:02:13.9]} 25... h5 {[%clk 0:02:03.4]} 26. Nf4 {[%clk 0:02:03]}
26... Qe1 {[%clk 0:01:52.3]} 27. Qf3 {[%clk 0:02:02.3]} 27... d4 {[%clk
0:01:48.5]} 28. c4 {[%clk 0:01:55.5]} 28... Qb4 {[%clk 0:01:19.3]} 29. b3 {[%clk
0:01:49.6]} 29... Qe7 {[%clk 0:01:11.8]} 30. h4 {[%clk 0:01:39.1]} 30... Kg7
{[%clk 0:01:09.2]} 31. Qd5 {[%clk 0:01:33.1]} 31... Qc7 {[%clk 0:00:47.8]} 32.
Nd3 {[%clk 0:01:25.8]} 32... Qc6 {[%clk 0:00:28.8]} 33. Qxc6 {[%clk 0:01:25.5]}
33... bxc6 {[%clk 0:00:29.7]} 34. c5 {[%clk 0:01:26.4]} 34... Bc7 {[%clk
0:00:20]} 35. Kf3 {[%clk 0:01:24.6]} 35... Kf6 {[%clk 0:00:19.6]} 36. Ke4 {[%clk
0:01:24.3]} 36... Ke6 {[%clk 0:00:20.5]} 37. Kxd4 {[%clk 0:01:23.4]} 37... f6
{[%clk 0:00:21.1]} 38. b4 {[%clk 0:01:01.2]} 38... g5 {[%clk 0:00:21.1]} 39. a4
{[%clk 0:00:58.9]} 39... a6 {[%clk 0:00:21.5]} 40. Ke4 {[%clk 0:00:57.9]} 40...
f5+ {[%clk 0:00:20.5]} 41. Kd4 {[%clk 0:00:58.1]} 41... f4 {[%clk 0:00:20.1]}
42. hxg5 {[%clk 0:00:41.1]} 42... fxg3 {[%clk 0:00:19.9]} 43. fxg3 {[%clk
0:00:42]} 43... Bxg3 {[%clk 0:00:20.2]} 44. Ke4 {[%clk 0:00:42.8]} 44... Bc7
{[%clk 0:00:18.5]} 45. Nf4+ {[%clk 0:00:39.8]} 45... Kf7 {[%clk 0:00:18.4]} 46.
Nxh5 {[%clk 0:00:39.3]} 46... Kg6 {[%clk 0:00:19.1]} 47. Nf4+ {[%clk 0:00:37.3]}
47... Kf7 {[%clk 0:00:16.6]} 48. a5 {[%clk 0:00:34.2]} 48... Bb8 {[%clk
0:00:14.9]} 49. Kf5 {[%clk 0:00:34.4]} 49... Ke7 {[%clk 0:00:14.8]} 50. g6
{[%clk 0:00:34.6]} 50... Bxf4 {[%clk 0:00:14.2]} 51. Kxf4 {[%clk 0:00:34.2]}
51... Kf6 {[%clk 0:00:15.1]} 52. g7 {[%clk 0:00:34.3]} 52... Kxg7 {[%clk
0:00:15.5]} 53. Ke5 {[%clk 0:00:35.2]} 53... Kf7 {[%clk 0:00:15.6]} 54. Kd6
{[%clk 0:00:36.1]} 54... Kf6 {[%clk 0:00:16]} 55. Kxc6 {[%clk 0:00:37]} 55...
Ke5 {[%clk 0:00:16.9]} 56. Kb6 {[%clk 0:00:37.9]} 56... Kd4 {[%clk 0:00:17.8]}
57. c6 {[%clk 0:00:38.5]} 57... Kc4 {[%clk 0:00:18.7]} 58. c7 {[%clk 0:00:39.4]}
58... Kxb4 {[%clk 0:00:19.6]} 59. c8=Q {[%clk 0:00:40]} 59... Ka4 {[%clk
0:00:20.5]} 60. Qxa6 {[%clk 0:00:40.9]} 60... Ka3 {[%clk 0:00:21.4]} 61. Qb7
{[%clk 0:00:41.8]} 61... Ka2 {[%clk 0:00:22.2]} 62. a6 {[%clk 0:00:42.7]} 62...
Ka1 {[%clk 0:00:23.1]} 63. a7 {[%clk 0:00:43.6]} 63... Kb2 {[%clk 0:00:23.9]}
64. a8=Q {[%clk 0:00:43.4]} 64... Kc3 {[%clk 0:00:24.8]} 65. Qac8+ {[%clk
0:00:43.7]} 65... Kd4 {[%clk 0:00:25.7]} 66. Qbd7+ {[%clk 0:00:44.6]} 66... Ke3
{[%clk 0:00:26.6]} 67. Qce8+ {[%clk 0:00:45.4]} 67... Kf4 {[%clk 0:00:27.5]} 68.
Qdf7+ {[%clk 0:00:46.3]} 68... Kg5 {[%clk 0:00:28.4]} 69. Qeg8+ {[%clk 0:00:47]}
69... Kh4 {[%clk 0:00:29.3]} 70. Qfh7# {[%clk 0:00:47.9]} 1-0

[Event "Early-Titled-Tuesday-Blitz-March-05-2024"]
[Site "Chess.com"]
[Date "2024.03.05"]
[Round "11"]
[White "Anton_Demchenko"]
[Black "Yeritsyaan"]
[Result "0-1"]
[WhiteElo "2897"]
[BlackElo "2656"]
[TimeControl "180+1"]
[EndTime "10:09:48 PST"]
[Termination "Yeritsyaan won by resignation"]

1. e4 {[%clk 0:03:00.9]} 1... c5 {[%clk 0:02:59.6]} 2. Nf3 {[%clk 0:03:01.3]}
2... d6 {[%clk 0:03:00.2]} 3. d4 {[%clk 0:03:01.6]} 3... cxd4 {[%clk 0:03:01.1]}
4. Qxd4 {[%clk 0:03:02]} 4... Nf6 {[%clk 0:02:58.5]} 5. Bg5 {[%clk 0:03:01.4]}
5... e5 {[%clk 0:02:54.6]} 6. Qd3 {[%clk 0:02:33]} 6... Be7 {[%clk 0:02:50.7]}
7. c4 {[%clk 0:02:31.1]} 7... O-O {[%clk 0:02:50.3]} 8. Nc3 {[%clk 0:02:30.6]}
8... Be6 {[%clk 0:02:47.5]} 9. Be2 {[%clk 0:02:28.2]} 9... Nbd7 {[%clk
0:02:45.7]} 10. O-O {[%clk 0:02:27.2]} 10... a6 {[%clk 0:02:44.7]} 11. Rfd1
{[%clk 0:02:15.4]} 11... Rc8 {[%clk 0:02:44.6]} 12. Nd2 {[%clk 0:02:04.3]} 12...
h6 {[%clk 0:02:37.8]} 13. Be3 {[%clk 0:02:00.8]} 13... Ng4 {[%clk 0:02:33.4]}
14. Bxg4 {[%clk 0:01:57]} 14... Bxg4 {[%clk 0:02:34.3]} 15. f3 {[%clk
0:01:57.5]} 15... Be6 {[%clk 0:02:34.9]} 16. Nd5 {[%clk 0:01:47.9]} 16... Bg5
{[%clk 0:02:29.3]} 17. Bxg5 {[%clk 0:01:06.2]} 17... Qxg5 {[%clk 0:02:30.2]} 18.
Rac1 {[%clk 0:01:05.1]} 18... Nc5 {[%clk 0:02:24.9]} 19. Qe2 {[%clk 0:00:57.5]}
19... Bxd5 {[%clk 0:02:24.7]} 20. cxd5 {[%clk 0:00:57.8]} 20... b5 {[%clk
0:02:19.2]} 21. Nf1 {[%clk 0:00:22.4]} 21... Na4 {[%clk 0:02:11.1]} 22. Ne3
{[%clk 0:00:21.1]} 22... Nxb2 {[%clk 0:02:02]} 23. Rc6 {[%clk 0:00:19.6]} 23...
Nxd1 {[%clk 0:01:59.8]} 24. Nxd1 {[%clk 0:00:12.1]} 24... Rxc6 {[%clk 0:02:00]}
25. dxc6 {[%clk 0:00:12.5]} 25... Qc1 {[%clk 0:02:00.7]} 26. Kf2 {[%clk
0:00:12.4]} 26... Qxc6 {[%clk 0:02:00.1]} 27. Ne3 {[%clk 0:00:13]} 27... Qc5
{[%clk 0:01:55.8]} 28. Kg3 {[%clk 0:00:13.4]} 28... Rc8 {[%clk 0:01:52.1]} 29.
Nf5 {[%clk 0:00:13.5]} 29... Kf8 {[%clk 0:01:50.7]} 30. Qd2 {[%clk 0:00:10.3]}
30... Rc6 {[%clk 0:01:48.4]} 31. h4 {[%clk 0:00:09.7]} 31... Qc3 {[%clk
0:01:45]} 32. Qd5 {[%clk 0:00:07.8]} 32... Qc4 {[%clk 0:01:39.1]} 33. Qd2 {[%clk
0:00:08]} 33... b4 {[%clk 0:01:33.8]} 34. Qf2 {[%clk 0:00:07.3]} 34... Qc5
{[%clk 0:01:31.5]} 35. Qd2 {[%clk 0:00:04.5]} 35... a5 {[%clk 0:01:29.7]} 36.
Qe2 {[%clk 0:00:04]} 36... a4 {[%clk 0:01:16.3]} 37. Qd1 {[%clk 0:00:03.6]}
37... b3 {[%clk 0:01:13.9]} 38. axb3 {[%clk 0:00:04.2]} 38... a3 {[%clk
0:01:14.7]} 39. Qd2 {[%clk 0:00:04.2]} 39... f6 {[%clk 0:00:53]} 40. h5 {[%clk
0:00:03.9]} 40... Kf7 {[%clk 0:00:50.8]} 41. Qa2 {[%clk 0:00:03.6]} 41... Qb4
{[%clk 0:00:47.6]} 42. Qe2 {[%clk 0:00:01.7]} 42... Qxb3 {[%clk 0:00:44.1]} 43.
Qd2 {[%clk 0:00:02.3]} 43... a2 {[%clk 0:00:42]} 44. Nxd6+ {[%clk 0:00:02.9]}
44... Rxd6 {[%clk 0:00:30.8]} 45. Qxd6 {[%clk 0:00:03.8]} 45... a1=Q {[%clk
0:00:31.4]} 46. Qd7+ {[%clk 0:00:04]} 46... Kf8 {[%clk 0:00:32]} 47. Qd8+ {[%clk
0:00:04.1]} 47... Kf7 {[%clk 0:00:32.6]} 48. Qd7+ {[%clk 0:00:04.8]} 48... Kg8
{[%clk 0:00:33.3]} 49. Qe8+ {[%clk 0:00:05.4]} 49... Kh7 {[%clk 0:00:34]} 50.
Qg6+ {[%clk 0:00:06.2]} 50... Kh8 {[%clk 0:00:34.7]} 51. Qe8+ {[%clk 0:00:07]}
51... Qg8 {[%clk 0:00:35.3]} 52. Qg6 {[%clk 0:00:07.3]} 52... Qe1+ {[%clk
0:00:35.4]} 53. Kh3 {[%clk 0:00:07.2]} 53... Qe3 {[%clk 0:00:35.2]} 54. Qf5
{[%clk 0:00:05.1]} 54... Qg5 {[%clk 0:00:35.3]} 0-1

[Event "Early-Titled-Tuesday-Blitz-March-05-2024"]
[Site "Chess.com"]
[Date "2024.03.05"]
[Round "11"]
[White "DvaHrasta"]
[Black "Louis-Paulsen-Fan"]
[Result "1/2-1/2"]
[WhiteElo "2450"]
[BlackElo "2256"]
[TimeControl "180+1"]
[EndTime "10:09:48 PST"]
[Termination "Game drawn by repetition"]

1. c4 {[%clk 0:03:00.9]} 1... e6 {[%clk 0:02:58.9]} 2. g3 {[%clk 0:03:00.9]}
2... d5 {[%clk 0:02:59]} 3. Bg2 {[%clk 0:03:01.2]} 3... c5 {[%clk 0:02:58.6]} 4.
cxd5 {[%clk 0:03:00.3]} 4... exd5 {[%clk 0:02:58.6]} 5. Nf3 {[%clk 0:03:00.4]}
5... Nc6 {[%clk 0:02:56.4]} 6. O-O {[%clk 0:03:00.4]} 6... d4 {[%clk 0:02:53]}
7. e3 {[%clk 0:02:57.9]} 7... Nf6 {[%clk 0:02:53.2]} 8. a3 {[%clk 0:02:57.1]}
8... Be7 {[%clk 0:02:50.3]} 9. b4 {[%clk 0:02:57]} 9... cxb4 {[%clk 0:02:47.3]}
10. axb4 {[%clk 0:02:56.9]} 10... dxe3 {[%clk 0:02:37.1]} 11. fxe3 {[%clk
0:02:48.1]} 11... O-O {[%clk 0:02:35.4]} 12. b5 {[%clk 0:02:43.8]} 12... Nb4
{[%clk 0:02:26.2]} 13. d4 {[%clk 0:02:42.4]} 13... Bf5 {[%clk 0:02:23.2]} 14.
Ne5 {[%clk 0:02:29.8]} 14... Be4 {[%clk 0:02:15.1]} 15. Nc3 {[%clk 0:02:17.6]}
15... Bxg2 {[%clk 0:02:14.2]} 16. Kxg2 {[%clk 0:02:17]} 16... Rc8 {[%clk
0:02:06.3]} 17. Bd2 {[%clk 0:02:11]} 17... Nbd5 {[%clk 0:01:59]} 18. Nxd5 {[%clk
0:01:49.6]} 18... Qxd5+ {[%clk 0:01:57.5]} 19. Qf3 {[%clk 0:01:48.6]} 19... Qxb5
{[%clk 0:01:53.3]} 20. Rfb1 {[%clk 0:01:46.4]} 20... Qd5 {[%clk 0:01:33.3]} 21.
Qxd5 {[%clk 0:01:34.6]} 21... Nxd5 {[%clk 0:01:34.2]} 22. Rxb7 {[%clk
0:01:33.5]} 22... Rc2 {[%clk 0:01:33.1]} 23. Nf3 {[%clk 0:01:27.4]} 23... Bg5
{[%clk 0:01:19.7]} 24. Nxg5 {[%clk 0:01:19.3]} 24... Rxd2+ {[%clk 0:01:19.7]}
25. Kf3 {[%clk 0:01:16.7]} 25... h6 {[%clk 0:00:58.4]} 26. Ne4 {[%clk
0:01:12.6]} 26... Rd3 {[%clk 0:00:55.2]} 27. Re1 {[%clk 0:01:03.7]} 27... Re8
{[%clk 0:00:50.9]} 28. Rxa7 {[%clk 0:00:51.9]} 28... f5 {[%clk 0:00:47.4]} 29.
Nd6 {[%clk 0:00:51.8]} 29... Rexe3+ {[%clk 0:00:42.8]} 30. Rxe3 {[%clk
0:00:51.6]} 30... Rxe3+ {[%clk 0:00:43.1]} 31. Kf2 {[%clk 0:00:51.9]} 31... Rd3
{[%clk 0:00:43.4]} 32. Nxf5 {[%clk 0:00:49.9]} 32... g6 {[%clk 0:00:27.8]} 33.
Nxh6+ {[%clk 0:00:48.2]} 33... Kf8 {[%clk 0:00:28.2]} 34. Ng4 {[%clk 0:00:41.4]}
34... Rxd4 {[%clk 0:00:26.8]} 35. Ne5 {[%clk 0:00:39.9]} 35... Rd2+ {[%clk
0:00:21.8]} 36. Kf3 {[%clk 0:00:33]} 36... Rxh2 {[%clk 0:00:21.4]} 37. Nxg6+
{[%clk 0:00:33]} 37... Kg8 {[%clk 0:00:21.8]} 38. Ke4 {[%clk 0:00:25.6]} 38...
Nf6+ {[%clk 0:00:18.7]} 39. Kf5 {[%clk 0:00:22.7]} 39... Rf2+ {[%clk 0:00:18.7]}
40. Nf4 {[%clk 0:00:20.3]} 40... Nd5 {[%clk 0:00:18.7]} 41. Ke5 {[%clk
0:00:11.6]} 41... Nxf4 {[%clk 0:00:18.6]} 42. gxf4 {[%clk 0:00:12.5]} 42... Rb2
{[%clk 0:00:15.6]} 43. f5 {[%clk 0:00:11.7]} 43... Rb6 {[%clk 0:00:15.1]} 44.
Kf4 {[%clk 0:00:08.7]} 44... Kf8 {[%clk 0:00:14.2]} 45. Kg5 {[%clk 0:00:08.9]}
45... Rc6 {[%clk 0:00:14]} 46. f6 {[%clk 0:00:05.7]} 46... Rc1 {[%clk
0:00:13.7]} 47. Kg6 {[%clk 0:00:06.1]} 47... Rg1+ {[%clk 0:00:13.6]} 48. Kf5
{[%clk 0:00:06.5]} 48... Rf1+ {[%clk 0:00:14.2]} 49. Ke6 {[%clk 0:00:06.8]}
49... Re1+ {[%clk 0:00:14.6]} 50. Kf5 {[%clk 0:00:07.2]} 50... Rf1+ {[%clk
0:00:15.1]} 51. Kg6 {[%clk 0:00:07.6]} 51... Rg1+ {[%clk 0:00:15.5]} 52. Kf5
{[%clk 0:00:08]} 52... Rf1+ {[%clk 0:00:15.9]} 1/2-1/2

[Event "Early-Titled-Tuesday-Blitz-March-05-2024"]
[Site "Chess.com"]
[Date "2024.03.05"]
[Round "11"]
[White "Indianlad"]
[Black "SnekkerAndersen"]
[Result "1-0"]
[WhiteElo "3037"]
[BlackElo "2687"]
[TimeControl "180+1"]
[EndTime "10:09:50 PST"]
[Termination "Indianlad won on time"]

1. Nf3 {[%clk 0:03:00.9]} 1... d5 {[%clk 0:02:59]} 2. e3 {[%clk 0:03:00.7]} 2...
e6 {[%clk 0:02:59.4]} 3. c4 {[%clk 0:03:00.8]} 3... Nf6 {[%clk 0:03:00.1]} 4.
Nc3 {[%clk 0:03:01.1]} 4... Be7 {[%clk 0:03:00.7]} 5. b3 {[%clk 0:03:01.4]} 5...
O-O {[%clk 0:03:00.8]} 6. Bb2 {[%clk 0:03:01.9]} 6... c5 {[%clk 0:03:01.5]} 7.
cxd5 {[%clk 0:03:02.4]} 7... exd5 {[%clk 0:03:01.6]} 8. Rc1 {[%clk 0:02:59.8]}
8... Nc6 {[%clk 0:02:59.4]} 9. Bb5 {[%clk 0:02:58.6]} 9... d4 {[%clk 0:02:39.2]}
10. Na4 {[%clk 0:02:56.2]} 10... Nb4 {[%clk 0:02:23.3]} 11. a3 {[%clk 0:02:52]}
11... a6 {[%clk 0:02:17.2]} 12. Be2 {[%clk 0:02:36.7]} 12... d3 {[%clk
0:02:02.2]} 13. axb4 {[%clk 0:02:36.7]} 13... dxe2 {[%clk 0:02:02.5]} 14. Qxe2
{[%clk 0:02:37.6]} 14... cxb4 {[%clk 0:02:03.2]} 15. O-O {[%clk 0:02:38.3]}
15... Be6 {[%clk 0:01:59.6]} 16. Nd4 {[%clk 0:02:38.2]} 16... Bg4 {[%clk
0:01:56]} 17. f3 {[%clk 0:02:38.1]} 17... Bd7 {[%clk 0:01:47.8]} 18. Nc5 {[%clk
0:02:38.2]} 18... Rc8 {[%clk 0:01:41.8]} 19. Nxd7 {[%clk 0:02:36.3]} 19... Qxd7
{[%clk 0:01:42.7]} 20. Rce1 {[%clk 0:02:27.6]} 20... b5 {[%clk 0:01:42]} 21. Qf2
{[%clk 0:02:27.5]} 21... a5 {[%clk 0:01:40.3]} 22. Qg3 {[%clk 0:02:27.7]} 22...
a4 {[%clk 0:01:38]} 23. Kh1 {[%clk 0:02:28]} 23... Kh8 {[%clk 0:01:21.1]} 24.
Rd1 {[%clk 0:01:34.2]} 24... Rg8 {[%clk 0:01:07.5]} 25. e4 {[%clk 0:01:30.5]}
25... Nh5 {[%clk 0:01:05.9]} 26. Qe1 {[%clk 0:01:27.6]} 26... Nf4 {[%clk
0:01:05.8]} 27. d3 {[%clk 0:01:20.8]} 27... axb3 {[%clk 0:00:54.7]} 28. Qd2
{[%clk 0:00:42]} 28... Ne6 {[%clk 0:00:41.4]} 29. Nxb3 {[%clk 0:00:40.1]} 29...
Qc7 {[%clk 0:00:21.5]} 30. Nd4 {[%clk 0:00:27.4]} 30... Nxd4 {[%clk 0:00:20.1]}
31. Bxd4 {[%clk 0:00:28.3]} 31... Qc2 {[%clk 0:00:19.9]} 32. Qf4 {[%clk
0:00:25.1]} 32... b3 {[%clk 0:00:19.8]} 33. Qxf7 {[%clk 0:00:24.8]} 33... Bg5
{[%clk 0:00:17.4]} 34. f4 {[%clk 0:00:24.4]} 34... Bh6 {[%clk 0:00:16.9]} 35.
Qe6 {[%clk 0:00:23.7]} 35... Rc6 {[%clk 0:00:16.1]} 36. Qd5 {[%clk 0:00:21.8]}
36... Rg6 {[%clk 0:00:16.1]} 37. e5 {[%clk 0:00:20.8]} 37... b2 {[%clk
0:00:13.7]} 38. f5 {[%clk 0:00:20.9]} 38... Rg4 {[%clk 0:00:12]} 39. e6 {[%clk
0:00:16.9]} 39... Bg5 {[%clk 0:00:09.1]} 40. h3 {[%clk 0:00:13.2]} 40... Rxd4
{[%clk 0:00:04.2]} 41. Qxd4 {[%clk 0:00:13.2]} 41... Bc1 {[%clk 0:00:04.8]} 42.
f6 {[%clk 0:00:12]} 42... Qc7 {[%clk 0:00:01.1]} 43. f7 {[%clk 0:00:11]} 43...
Rf8 {[%clk 0:00:01.2]} 44. Qb4 {[%clk 0:00:10.2]} 1-0

[Event "Early-Titled-Tuesday-Blitz-March-05-2024"]
[Site "Chess.com"]
[Date "2024.03.05"]
[Round "11"]
[White "GaiozNigalidze"]
[Black "subham777"]
[Result "0-1"]
[WhiteElo "2691"]
[BlackElo "2581"]
[TimeControl "180+1"]
[EndTime "10:09:50 PST"]
[Termination "subham777 won on time"]

1. e4 {[%clk 0:03:00.9]} 1... e6 {[%clk 0:02:59.5]} 2. d4 {[%clk 0:02:59.2]}
2... d5 {[%clk 0:02:59.2]} 3. exd5 {[%clk 0:03:00.1]} 3... exd5 {[%clk
0:02:59.8]} 4. Nf3 {[%clk 0:03:00.6]} 4... Nf6 {[%clk 0:02:59.8]} 5. Be2 {[%clk
0:03:00.8]} 5... Bd6 {[%clk 0:03:00.3]} 6. O-O {[%clk 0:03:01]} 6... O-O {[%clk
0:03:00.8]} 7. b3 {[%clk 0:02:59.9]} 7... Re8 {[%clk 0:03:00.5]} 8. Bb2 {[%clk
0:02:59.8]} 8... Bg4 {[%clk 0:02:54.2]} 9. Nbd2 {[%clk 0:02:57.1]} 9... c6
{[%clk 0:02:53.9]} 10. Ne5 {[%clk 0:02:52.9]} 10... Bxe2 {[%clk 0:02:52.1]} 11.
Qxe2 {[%clk 0:02:52.8]} 11... Nbd7 {[%clk 0:02:52]} 12. f4 {[%clk 0:02:52]}
12... c5 {[%clk 0:02:52]} 13. c3 {[%clk 0:02:31.9]} 13... Rc8 {[%clk 0:02:45.8]}
14. Qd3 {[%clk 0:02:26.7]} 14... Qb6 {[%clk 0:02:35.1]} 15. Kh1 {[%clk
0:02:20.4]} 15... Nf8 {[%clk 0:02:21.8]} 16. dxc5 {[%clk 0:02:05.1]} 16... Bxc5
{[%clk 0:02:16.3]} 17. Rae1 {[%clk 0:01:58.4]} 17... Bd6 {[%clk 0:02:01.3]} 18.
c4 {[%clk 0:01:55.1]} 18... Bb4 {[%clk 0:01:44.1]} 19. cxd5 {[%clk 0:01:48.9]}
19... Bxd2 {[%clk 0:01:31.4]} 20. Qxd2 {[%clk 0:01:48.6]} 20... Red8 {[%clk
0:01:31.8]} 21. Nc4 {[%clk 0:01:44.9]} 21... Qc5 {[%clk 0:01:27.7]} 22. d6
{[%clk 0:01:23.9]} 22... b5 {[%clk 0:01:24.7]} 23. Ba3 {[%clk 0:01:24]} 23...
Qf5 {[%clk 0:01:10.6]} 24. Ne3 {[%clk 0:01:13.2]} 24... Qh5 {[%clk 0:01:00.4]}
25. Qe2 {[%clk 0:01:01]} 25... Qxe2 {[%clk 0:00:49.7]} 26. Rxe2 {[%clk
0:01:01.9]} 26... a5 {[%clk 0:00:50]} 27. Nf5 {[%clk 0:00:57.2]} 27... Rc3
{[%clk 0:00:42.1]} 28. Bb2 {[%clk 0:00:50.5]} 28... Rd3 {[%clk 0:00:39.1]} 29.
Ne7+ {[%clk 0:00:36.1]} 29... Kh8 {[%clk 0:00:38.5]} 30. Nc6 {[%clk 0:00:36.7]}
30... R8xd6 {[%clk 0:00:33.6]} 31. Ne5 {[%clk 0:00:17.2]} 31... Rd2 {[%clk
0:00:31.1]} 32. Nxf7+ {[%clk 0:00:16]} 32... Kg8 {[%clk 0:00:31.4]} 33. Nxd6
{[%clk 0:00:15.5]} 33... Rxe2 {[%clk 0:00:30.4]} 34. Bxf6 {[%clk 0:00:13.4]}
34... gxf6 {[%clk 0:00:29.3]} 35. Nxb5 {[%clk 0:00:13.6]} 35... Rxa2 {[%clk
0:00:28.9]} 36. h3 {[%clk 0:00:13.2]} 36... Ne6 {[%clk 0:00:26.3]} 37. f5 {[%clk
0:00:10]} 37... Nc5 {[%clk 0:00:26.3]} 38. Rf3 {[%clk 0:00:09.7]} 38... Rb2
{[%clk 0:00:23.2]} 39. Nd4 {[%clk 0:00:09.7]} 39... Ne4 {[%clk 0:00:20.7]} 40.
Kh2 {[%clk 0:00:06.9]} 40... Kf7 {[%clk 0:00:19.4]} 41. Re3 {[%clk 0:00:06.8]}
41... Nd2 {[%clk 0:00:16.6]} 42. Rc3 {[%clk 0:00:05.5]} 42... Rb1 {[%clk
0:00:10.4]} 43. h4 {[%clk 0:00:02.8]} 43... Nf1+ {[%clk 0:00:09.6]} 44. Kh3
{[%clk 0:00:02.4]} 44... Nd2 {[%clk 0:00:10.5]} 45. Rc7+ {[%clk 0:00:02.3]}
45... Ke8 {[%clk 0:00:10.6]} 46. Rc6 {[%clk 0:00:02.6]} 46... Nxb3 {[%clk
0:00:09.9]} 47. Ne6 {[%clk 0:00:01.2]} 47... Nd2 {[%clk 0:00:08.7]} 0-1

[Event "Early-Titled-Tuesday-Blitz-March-05-2024"]
[Site "Chess.com"]
[Date "2024.03.05"]
[Round "11"]
[White "VinzentSpitzl"]
[Black "Iskusnyh"]
[Result "1-0"]
[WhiteElo "2544"]
[BlackElo "2672"]
[TimeControl "180+1"]
[EndTime "10:09:50 PST"]
[Termination "VinzentSpitzl won on time"]

1. e4 {[%clk 0:03:00.9]} 1... e6 {[%clk 0:02:59.4]} 2. d4 {[%clk 0:02:58.2]}
2... d5 {[%clk 0:02:59.8]} 3. Nd2 {[%clk 0:02:58.7]} 3... c5 {[%clk 0:02:59.2]}
4. exd5 {[%clk 0:02:58.8]} 4... Qxd5 {[%clk 0:02:58]} 5. Ngf3 {[%clk 0:02:59]}
5... cxd4 {[%clk 0:02:57.2]} 6. Bc4 {[%clk 0:02:59.1]} 6... Qd6 {[%clk
0:02:54.3]} 7. O-O {[%clk 0:02:58.5]} 7... Nf6 {[%clk 0:02:52.2]} 8. Nb3 {[%clk
0:02:58.3]} 8... Nc6 {[%clk 0:02:52.7]} 9. Nbxd4 {[%clk 0:02:58.5]} 9... Nxd4
{[%clk 0:02:53.3]} 10. Qxd4 {[%clk 0:02:59]} 10... Qxd4 {[%clk 0:02:52.1]} 11.
Nxd4 {[%clk 0:02:59.9]} 11... Bd7 {[%clk 0:02:52.3]} 12. Be2 {[%clk 0:02:53.1]}
12... Bc5 {[%clk 0:02:45.8]} 13. Nb3 {[%clk 0:02:51.9]} 13... Bb6 {[%clk
0:02:45.4]} 14. Bf3 {[%clk 0:02:49.9]} 14... O-O-O {[%clk 0:02:44.9]} 15. a4
{[%clk 0:02:42.1]} 15... Bc6 {[%clk 0:02:35.3]} 16. Bxc6 {[%clk 0:02:27.1]}
16... bxc6 {[%clk 0:02:36.2]} 17. a5 {[%clk 0:02:25.2]} 17... Bc7 {[%clk
0:02:35]} 18. Be3 {[%clk 0:02:24.5]} 18... Bb8 {[%clk 0:02:18]} 19. Nd4 {[%clk
0:02:17.8]} 19... Rd6 {[%clk 0:01:54.5]} 20. Ra4 {[%clk 0:02:14.2]} 20... Rhd8
{[%clk 0:01:50.3]} 21. Rc4 {[%clk 0:02:10.4]} 21... Kd7 {[%clk 0:01:11]} 22. Bf4
{[%clk 0:01:53.6]} 22... c5 {[%clk 0:00:52]} 23. Bxd6 {[%clk 0:01:44.5]} 23...
Kxd6 {[%clk 0:00:51.1]} 24. Rd1 {[%clk 0:01:29.6]} 24... cxd4 {[%clk 0:00:28.1]}
25. Rcxd4+ {[%clk 0:01:28.9]} 25... Nd5 {[%clk 0:00:28]} 26. c4 {[%clk
0:01:28.8]} 26... Rc8 {[%clk 0:00:27.5]} 27. cxd5 {[%clk 0:01:26.6]} 27... e5
{[%clk 0:00:27.5]} 28. Rb4 {[%clk 0:01:21.6]} 28... f5 {[%clk 0:00:25.6]} 29.
Rb7 {[%clk 0:01:17.7]} 29... e4 {[%clk 0:00:20]} 30. g3 {[%clk 0:01:06.8]} 30...
g5 {[%clk 0:00:18.8]} 31. b4 {[%clk 0:00:59.4]} 31... f4 {[%clk 0:00:18.1]} 32.
b5 {[%clk 0:00:55]} 32... h5 {[%clk 0:00:16.5]} 33. a6 {[%clk 0:00:48.9]} 33...
h4 {[%clk 0:00:15.1]} 34. b6 {[%clk 0:00:46.4]} 34... axb6 {[%clk 0:00:13.7]}
35. Rxb6+ {[%clk 0:00:46.9]} 35... Ke5 {[%clk 0:00:12.6]} 36. Rb7 {[%clk
0:00:41.5]} 36... e3 {[%clk 0:00:08.7]} 37. fxe3 {[%clk 0:00:39.5]} 37... f3
{[%clk 0:00:09.2]} 38. a7 {[%clk 0:00:32.2]} 38... Bxa7 {[%clk 0:00:09.3]} 39.
Rxa7 {[%clk 0:00:31.8]} 39... Rc2 {[%clk 0:00:09.9]} 40. gxh4 {[%clk 0:00:30.8]}
40... g4 {[%clk 0:00:06.8]} 41. d6 {[%clk 0:00:30.7]} 41... Rg2+ {[%clk
0:00:06.2]} 42. Kh1 {[%clk 0:00:30.8]} 42... Re2 {[%clk 0:00:06.4]} 43. d7
{[%clk 0:00:29.3]} 43... f2 {[%clk 0:00:06.9]} 44. Rf1 {[%clk 0:00:28.3]} 44...
g3 {[%clk 0:00:05.6]} 45. hxg3 {[%clk 0:00:27.2]} 45... Ke4 {[%clk 0:00:04]} 46.
Kg2 {[%clk 0:00:27]} 46... Rd2 {[%clk 0:00:03.5]} 47. Rxf2 {[%clk 0:00:25.8]}
47... Rd6 {[%clk 0:00:03.1]} 48. Rf8 {[%clk 0:00:23.1]} 1-0